Cogmind - Beta 14 @@@ ROGUE MODE // 2024.09.16 @ 05:57:07 Player: Cereal Killer Result: Escaped! Performance ------------- Evolutions (9) 4500 Regions Visited (28) 5600 Robots Destroyed (517) 2585 Value Destroyed (28965) 28965 Prototype IDs (72) 1440 Alien Tech Used (1) 200 Bonus (28243) 28243 TOTAL SCORE: 71533 Bonus ------- Triggered High Security 1000 High Alert Combat Kills 13537 Follower Combat Kills 2164 Entered Garrisons 800 Aligned with FarCom 300 Met Data Miner 300 Acquired ECA 300 Met Warlord at Base 500 MAIN.C Attacked Warlord 500 Warlord Defense Kills 1442 Built Enhanced Grunts 300 A7 Reached Mainframe 300 Met R17 at Cetus 500 Met R17 at Research 2000 Met Warlord at Research 2000 Scanned by Researcher 500 Win 3000 Friendly Fire -1200 Cogmind --------- Core Integrity 1108/1600 Matter 260/300 Energy 593/600 System Corruption 0% Temperature Warning (350) Movement Treading (240) Ox1 Location To Epsilon Eridani Parts ------- > --- POWER (3) -------- Reinforced Quantum Reactor Reinforced Quantum Reactor > --- PROPULSION (4) --- Enhanced Armored Heavy Treads > --- UTILITY (13) ----- High-capacity Storage Unit Core Analyzer Improved Weapon Cycler Experimental Cloaking Device Improved Hacking Suite Sensor Drone Bay (4/20) > --- WEAPON (6) ------- Enhanced Quantum Rifle Advanced Micro-nuke Launcher Force Lance > --- INVENTORY (20) --- Micro Antimatter Reactor Wheel Compact Wheel Cooled Field Propulsion Drive Cooled Field Propulsion Drive Precision Energy Filter Centrium Medium Armor Plating Centrium Medium Armor Plating Graphene Brace Advanced Variable Charge Gun Matter Neutralizer Linear Accelerator Smartbomb Launcher Advanced Datajack Peak State ------------ > --- POWER ------------ Quantum Reactor Vortex Chain Reactor > --- PROPULSION ------- Enhanced Armored Heavy Treads Enhanced Armored Heavy Treads > --- UTILITY ---------- Advanced Cryofiber Web Experimental Heat Sink Improved Coolant Injector High-capacity Storage Unit Gravity Neutralizer Core Analyzer Improved Weapon Cycler Centrium Medium Armor Plating Advanced Thermal Defense Suite Advanced EM Disruption Field Improved Hacking Suite System Mapper Sensor Drone Bay > --- WEAPON ----------- Matter Neutralizer Improved Matter Neutralizer Firepult Linear Accelerator Advanced Micro-nuke Launcher > --- INVENTORY -------- Quantum Reactor Compact Wheel Advanced Coolant Injector Experimental Cloaking Device Centrium Medium Armor Plating Centrium Medium Armor Plating Improved System Restoration Module Advanced Variable Charge Gun Vortex Shotgun Vortex Shotgun Vortex Shotgun Linear Accelerator Linear Accelerator Smartbomb Launcher Advanced Datajack Force Lance [Rating: 218] Favorites ----------- Power Reinforced Fission Core Engine Improved Deuterium Engine Power Core Reinforced Fission Core Reactor Vortex Chain Reactor Propulsion Compact Wheel Treads Enhanced Armored Heavy Treads Leg Enhanced Biometal Leg Wheel Compact Wheel Hover Unit Combat Airjet Utility High-capacity Storage Unit Device Advanced Cryofiber Web Storage High-capacity Storage Unit Processor Core Analyzer Hackware Improved Hacking Suite Protection Improved Powered Armor Weapon Quantum Rifle Energy Gun Quantum Rifle Energy Cannon Advanced Plasma Cannon Ballistic Gun Hypervelocity Coil Gun Ballistic Cannon Heavy Mass Driver Launcher Missile Launcher Special Weapon Improved Plasma Cutter Piercing Weapon Force Lance Special Melee Weapon Advanced Datajack Build | -11 -10 -10 -10 -9 -8 -8 -7 -7 -7 -7 -7 -7 -6 -6 -6 -6 -5 -5 -5 -5 -5 -4 -4 -4 -4 -3 -2 -1 ------- Run | Yrd Mat Min Exi Min Mat Gar Fac Gar Fac Gar Fac Gar Fac Low Low Dat Pro Fac Upp Upp War Pro Fac Ext Cet Res Res Acc Slots Evolved 18 | . . . . . 4 . 2 . . . . . 2 . . . . 2 . . . . 2 . . 2 2 2 Power 2 | . . . . . . . . . . . . . 1 . . . . . . . . . . . . . . 1 Propulsion 1 | . . . . . . . . . . . . . . . . . . . . . . . . . . 1 . . Utility 11 | . . . . . 3 . 2 . . . . . 1 . . . . 1 . . . . 1 . . 1 1 1 Weapon 4 | . . . . . 1 . . . . . . . . . . . . 1 . . . . 1 . . . 1 . Parts Attached 486 | 6 8 24 2 3 21 20 14 25 10 33 19 17 37 16 3 . 9 44 6 20 24 8 18 18 16 23 7 35 Power 35 | 1 . 3 . . 1 2 1 1 . 1 1 1 3 1 1 . . 7 . . . 1 . 4 1 . . 5 Engine 12 | 1 . 3 . . 1 . . 1 . 1 . . 3 . . . . 2 . . . . . . . . . . Core 9 | . . . . . . 2 1 . . . . . . 1 1 . . 3 . . . . . 1 . . . . Reactor 14 | . . . . . . . . . . . 1 1 . . . . . 2 . . . 1 . 3 1 . . 5 Propulsion 62 | 2 4 12 1 . 2 1 1 2 . 4 1 . . 2 . . . 4 1 5 8 1 2 3 3 1 2 . Treads 11 | . . . . . . . . . . . . . . . . . . . 1 5 1 1 . . 1 . 2 . Leg 2 | . . . . . . . . . . . . . . . . . . . . . 2 . . . . . . . Wheel 46 | 2 4 10 1 . 2 1 1 2 . 4 1 . . 2 . . . 4 . . 4 . 2 3 2 1 . . Hover 3 | . . 2 . . . . . . . . . . . . . . . . . . 1 . . . . . . . Flight . | . . . . . . . . . . . . . . . . . . . . . . . . . . . . . Utility 148 | 1 4 2 1 1 5 5 2 13 3 4 8 5 11 5 2 . 3 21 4 4 5 4 8 5 4 7 3 8 Device 104 | . 1 2 . 1 2 4 2 10 3 2 4 4 8 3 2 . 1 17 3 4 3 4 8 2 . 6 3 5 Storage 4 | 1 1 . 1 . . . . . . . . . . . . . . 1 . . . . . . . . . . Processor 5 | . . . . . . . . . . . 1 . . 2 . . . 1 . . 1 . . . . . . . Hackware 3 | . . . . . 1 . . . . . . . 1 . . . . . . . . . . . . . . 1 Protection 32 | . 2 . . . 2 1 . 3 . 2 3 1 2 . . . 2 2 1 . 1 . . 3 4 1 . 2 Artifact . | . . . . . . . . . . . . . . . . . . . . . . . . . . . . . Weapon 241 | 2 . 7 . 2 13 12 10 9 7 24 9 11 23 8 . . 6 12 1 11 11 2 8 6 8 15 2 22 Energy Gun 47 | 1 . 2 . . . . . . . . . 3 10 6 . . 2 . . 1 4 2 3 . 1 3 1 8 Energy Cannon 67 | . . 1 . . 4 5 1 2 4 9 3 . 5 1 . . 3 4 1 6 2 . 2 4 2 3 . 5 Ballistic Gun 37 | 1 . 1 . 2 5 5 5 4 2 5 . . . . . . . 1 . 1 1 . . . 1 3 . . Ballistic Cannon 40 | . . 1 . . 2 1 2 . . 2 2 4 2 . . . . 3 . 3 4 . 3 1 2 4 . 4 Launcher 37 | . . 2 . . 2 1 2 3 1 7 2 4 6 1 . . 1 . . . . . . 1 . . . 4 Special Weapon 2 | . . . . . . . . . . . . . . . . . . . . . . . . . 1 . 1 . Impact Weapon . | . . . . . . . . . . . . . . . . . . . . . . . . . . . . . Slashing Weapon . | . . . . . . . . . . . . . . . . . . . . . . . . . . . . . Piercing Weapon 10 | . . . . . . . . . . 1 1 . . . . . . 4 . . . . . . 1 2 . 1 Special Melee Weapon 1 | . . . . . . . . . . . 1 . . . . . . . . . . . . . . . . . Unidentified Prototypes 35 | . . 1 . . . . . . . . 1 . 3 . . . . 7 . . 8 . 2 . 5 3 1 4 Parts Lost 71 | . . 8 . . 4 3 1 2 . 1 5 2 3 4 . . 2 7 1 4 . 3 . 3 . . . 18 Power 8 | . . 1 . . 1 . 1 . . . 1 1 . . . . . 1 . . . . . 1 . . . 1 Propulsion 17 | . . 3 . . 2 1 . . . 1 . . . 1 . . . 2 1 3 . 1 . 1 . . . 1 Utility 30 | . . 1 . . 1 1 . 2 . . 3 . 2 3 . . . 4 . 1 . 1 . 1 . . . 10 Weapon 16 | . . 3 . . . 1 . . . . 1 1 1 . . . 2 . . . . 1 . . . . . 6 Highest Loss Streak 6 | . . 6 . . 4 1 1 2 . 1 4 1 1 3 . . 2 4 1 2 . 2 . 1 . . . 4 To Critical Strikes . | . . . . . . . . . . . . . . . . . . . . . . . . . . . . . Average Slot Usage (%) 91 | . 98 95 71 79 90 98 94 94 98 96 89 84 84 93 100 100 99 91 90 90 87 88 93 99 88 91 87 79 Engine 3 | . 14 13 14 14 8 6 . 6 7 7 5 . 5 6 3 . . 2 . . . . . . . . . . Core 4 | . . . . . . 2 6 . . . . . . 5 8 13 13 7 11 11 11 5 5 5 . . . . Reactor 1 | . . . . . . . . . . . 1 6 6 . . . . . . . . 4 5 4 5 4 4 7 Treads 1 | . . . . . . . . . . . . . . . . . . . . 10 9 . . . . . 6 6 Wheel 12 | . 27 27 28 28 17 17 14 15 15 14 14 7 6 12 13 13 13 13 12 4 2 11 14 14 14 14 3 . Device 23 | . . 9 14 14 14 16 29 25 30 30 24 28 26 25 26 26 25 14 22 26 24 26 26 27 25 27 32 28 Storage 6 | . 19 14 14 14 9 9 7 7 7 7 7 7 6 6 6 6 6 5 5 5 5 5 5 5 5 4 4 3 Processor 3 | . . . . . . . . . . . . . . 9 13 13 13 8 5 5 5 5 5 5 5 4 4 3 Hackware 5 | . . . . . 5 9 7 7 7 7 7 7 6 6 6 6 6 5 5 5 5 5 5 5 5 4 4 4 Protection 6 | . 7 3 . . 13 10 7 7 7 7 10 7 8 1 . . . 10 11 5 7 5 5 7 10 7 4 2 Energy Gun 3 | . 14 3 . . . . . . . . . 6 8 7 13 13 7 . . . 3 9 11 7 . 3 9 4 Energy Cannon 4 | . . 5 . . . 6 6 3 5 12 1 . . 2 . . 4 5 6 9 1 . . 5 5 2 8 8 Ballistic Gun 3 | . 14 8 . 8 14 17 5 14 13 2 . . . . . . . . . . . . . . . 5 . . Ballistic Cannon 4 | . . 2 . . 4 2 1 . . 2 11 2 . 6 6 6 6 7 5 3 4 5 9 11 6 6 4 2 Piercing Weapon 1 | . . . . . . . . . . 1 1 7 3 . . . . 4 3 . . . . . 2 2 . 1 Peak Build Rating 218 | 6 9 24 16 21 44 43 53 68 77 70 75 83 98 96 89 89 94 98 97 109 128 114 134 131 148 155 199 218 Average Rating 88 | 4 8 16 11 18 27 38 50 60 69 66 66 77 90 85 87 89 86 91 95 96 102 107 123 125 129 150 189 202 On Entrance 76 | . 6 9 17 12 21 27 40 49 68 68 68 72 83 96 86 89 89 82 94 95 84 105 107 126 127 142 155 197 Naked Turns . | . . . . . . . . . . . . . . . . . . . . . . . . . . . . . Heaviest Build 226 | 14 34 48 46 64 77 82 80 109 99 94 101 92 119 129 106 106 109 134 137 137 135 138 153 155 156 159 165 226 Greatest Support 172 | 26 26 32 20 20 32 32 26 28 24 28 28 28 28 28 28 28 28 42 42 98 98 60 48 42 42 64 172 172 Greatest Overweight (x) 12 | . 1 3 2 3 4 4 4 4 4 7 4 3 4 4 3 3 3 12 5 8 4 4 4 4 9 3 2 1 Average Overweight (x) 2 | . . 1 1 2 2 2 2 3 3 2 3 2 3 3 3 3 3 3 4 3 . 3 2 3 2 2 . . Largest Inventory Capacity 20 | 8 15 15 20 20 20 20 20 20 20 20 20 20 20 20 20 20 20 20 20 20 20 20 20 20 20 20 20 20 Average Capacity 19 | 7 14 15 15 20 20 20 20 20 20 20 20 20 20 20 20 20 20 20 20 20 20 20 20 20 20 20 20 20 Most Carried 20 | 4 15 15 15 17 16 20 20 20 20 20 20 20 20 20 20 20 20 20 20 20 20 20 20 20 20 20 20 20 Average Carried 18 | 1 11 14 14 15 11 18 19 19 19 19 19 19 18 17 19 20 17 18 18 18 19 19 19 19 19 19 19 17 Final Capacity 20 | 8 15 15 20 20 20 20 20 20 20 20 20 20 20 20 20 20 20 20 20 20 20 20 20 20 20 20 20 20 Final Carried 20 | 2 15 15 15 15 16 20 18 20 20 20 18 20 18 20 20 20 17 19 19 20 20 20 17 20 20 20 19 15 Class Distribution -------------------- 43% | Scavenger-Tank 15% | Mutant 14% | Scavenger-Gunner 9% | Scavenger-Mutant 4% | Tank 3% | Commander-Tank Dominant Class ---------------- Mutant | -10/Materials Mutant | -10/Mines Scavenger-Mutant | -10/Exiles Mutant | -9/Mines Tank | -8/Materials Scavenger-Tank | -8/Garrison Scavenger-Tank | -7/Factory Scavenger-Tank | -7/Garrison Scavenger-Tank | -7/Factory Scavenger-Tank | -7/Garrison Scavenger-Tank | -7/Factory Mutant | -7/Garrison Mutant | -6/Factory Scavenger-Gunner | -6/Lower Caves Scavenger-Gunner | -6/Lower Caves Scavenger-Gunner | -6/Data Miner Scavenger-Gunner | -5/Proximity Caves Scavenger-Tank | -5/Factory Scavenger-Tank | -5/Upper Caves Scavenger-Gunner | -5/Upper Caves Scavenger-Mutant | -5/Warlord Scavenger-Tank | -4/Proximity Caves Scavenger-Tank | -4/Factory Scavenger-Tank | -4/Extension Commander-Mutant | -4/Cetus Commander-Tank | -3/Research Executioner | -2/Research Pyromaniac-Executioner | -1/Access Resources | -11 -10 -10 -10 -9 -8 -8 -7 -7 -7 -7 -7 -7 -6 -6 -6 -6 -5 -5 -5 -5 -5 -4 -4 -4 -4 -3 -2 -1 ----------- Run | Yrd Mat Min Exi Min Mat Gar Fac Gar Fac Gar Fac Gar Fac Low Low Dat Pro Fac Upp Upp War Pro Fac Ext Cet Res Res Acc Matter Collected 12319 | 204 559 609 . 51 494 603 437 769 208 873 290 1113 794 446 44 . 212 693 330 487 254 426 270 519 257 639 118 620 Remotely . | . . . . . . . . . . . . . . . . . . . . . . . . . . . . . Salvage Created 23050 | . 498 252 . . 797 817 417 563 413 769 323 974 3258 323 89 . 300 794 374 918 706 474 384 1466 605 920 383 6233 Parts 802 | . 39 14 . . 43 41 23 18 12 54 17 48 98 11 2 . 16 32 16 39 12 15 20 31 20 30 10 141 Haulers Intercepted 6 | . . . . . . . . . . . . . . . . . . 1 . . . . 2 . . . 2 1 Recyclers Shooed 2 | . . . . . . . . . . . . . 1 . . . . . . . . . . . . . . 1 Parts Field Recycled . | . . . . . . . . . . . . . . . . . . . . . . . . . . . . . Retrieved Matter . | . . . . . . . . . . . . . . . . . . . . . . . . . . . . . Parts Self-Destructed 101 | . . . . . . . . . . . . . . 11 2 . 16 . 13 37 . 22 . . . . . . Prevented 2 | . . . . . . . . . . . . . . . . . . . . 2 . . . . . . . . Kills | -11 -10 -10 -10 -9 -8 -8 -7 -7 -7 -7 -7 -7 -6 -6 -6 -6 -5 -5 -5 -5 -5 -4 -4 -4 -4 -3 -2 -1 ------- Run | Yrd Mat Min Exi Min Mat Gar Fac Gar Fac Gar Fac Gar Fac Low Low Dat Pro Fac Upp Upp War Pro Fac Ext Cet Res Res Acc Combat Hostiles Destroyed 472 | . 11 14 . . 20 24 16 12 6 26 7 25 78 13 1 . 10 8 12 27 12 11 8 22 8 13 2 86 Melee 8 | . . . . . . . . . . 3 1 3 . . . . . . . . . . . . . 1 . . Guns 91 | . 11 5 . . 6 5 . 5 2 5 . 2 5 5 1 . 2 . . 1 . 8 5 5 . 5 1 12 Cannons 125 | . . 2 . . 6 8 1 1 2 6 5 7 7 4 . . 5 7 12 21 3 3 3 7 . 4 . 11 AOE 145 | . . 7 . . 5 9 15 6 1 11 . 13 49 4 . . 2 . . 3 . . . . . 3 . 17 Classes Destroyed 30 | . 7 2 . . 4 1 2 . . 2 . . 3 2 1 . . 1 . . 1 . . . . 1 . 3 Worker 12 | . 2 1 . . 3 . . . . . . . 2 . . . . 1 . . . . 2 . . . . 1 Builder 14 | . 1 1 . . 1 . 1 . . . . . . . . . . 1 . . . . 1 . . . . 8 Tunneler 4 | . 1 1 . . . . . . . . . . . . . . . . . . . . . . . 1 . 1 Hauler 6 | . . . . . . . . . . . . . . . . . . 1 . . . . 2 . . . 2 1 Recycler 8 | . . 1 . . 1 . 1 . . . . . . . . . . 2 . . . . . 1 . . 1 1 Minesweeper 2 | . . . . . . . . . . . . . . . 1 . . . . . . 1 . . . . . . Mechanic 7 | . . . . . . . . . . . . . 7 . . . . . . . . . . . . . . . Operator 4 | . 1 . . . . . . . . . 2 . . . . . . . . . . . . . . 1 . . Drone 1 | . . . . . . . . . . . . . . . . . . . . . . . . . . . . 1 Watcher 8 | . 2 . . . . . 1 . 1 . 1 . 1 . . . . . . . . . 1 . 1 . . . Swarmer 111 | . 3 3 . . 7 10 4 4 . 11 2 3 . 12 . . 5 . 8 20 . 2 4 4 . . . 9 Cutter 4 | . . . . . . . . . . 3 . 1 . . . . . . . . . . . . . . . . Saboteur 4 | . . . . . . . . . . . . . 2 . . . . . . . . . . . . . . 2 Grunt 166 | . 8 2 . . 8 7 9 . 2 4 . 15 39 . 1 . 5 2 . 3 7 4 . 10 . 10 1 29 Brawler 16 | . . . . . . . 1 . 1 . . . 7 . . . . . . 1 2 . . . . . . 4 Duelist 23 | . . . . . . . 1 . 2 . . 1 12 . . . . . . 1 . 4 . . . . . 2 Protector 6 | . . . . . . . . . . . . . 4 . . . . . . . 1 . . 1 . . . . Sentry 37 | . . . . . 1 4 . 6 1 7 2 2 1 . . . . 2 . 1 . 1 . 4 . 1 . 4 Demolisher 4 | . . . . . . . . . . 1 . . . . . . . . . . 1 . . 1 . 1 . . Specialist 4 | . . . . . 2 . . 2 . . . . . . . . . . . . . . . . . . . . Hunter 36 | . . . . . 1 4 . . . . 1 2 5 . . . . 1 . . . . . . . . 1 21 Programmer 28 | . . . . . . . 1 . . . 1 1 8 . . . . 2 . . . . 4 . . . . 11 Heavy 3 | . . . . . 1 . . . . . 1 . . . . . . 1 . . . . . . . . . . Behemoth 6 | . . . . . . . . . . . . . . 1 . . . . . 1 . . . 2 . . . 2 Cetus Guard 8 | . . . . . . . . . . . . . . . . . . . . . . . . . 8 . . . Enhanced Grunt 1 | . . . . . . . . . . . . . . . . . . . . . . . . . . 1 . . Investigator 1 | . . . . . . . . . . . . . . . . . . . . . . . . . . . . 1 Striker 1 | . . . . . . . . . . . . . . . . . . . . . 1 . . . . . . . Executioner 2 | . . . . . . . . . . . . . . . . . . . . . . . . . . . . 2 Samaritan 1 | . . . . . . . . . . . . . . 1 . . . . . . . . . . . . . . Assembled 9 | . . 9 . . . . . . . . . . . . . . . . . . . . . . . . . . Savage 6 | . . . . . . 1 . . . . . . . . . . . 1 4 . . . . . . . . . Revision 1 | . . . . . . . . . . . . . . . . . . . . . . . . . . 1 . . Best Kill Streak 22 | . 6 6 . . 11 4 5 4 3 8 2 5 22 4 1 . 5 2 8 5 10 5 4 11 5 7 2 14 Combat Bots Only 18 | . 5 3 . . 10 4 4 4 3 8 2 5 18 4 1 . 5 2 8 5 10 5 4 10 4 6 1 12 Max Kills in Single Turn 7 | . 1 2 . . 3 3 3 2 1 2 1 2 7 4 1 . 2 2 2 3 3 1 2 2 2 4 1 4 Gunslinging . | . . . . . . . . . . . . . . . . . . . . . . . . . . . . . Exploded 5 | . . 1 . . 2 3 3 2 1 2 . 2 5 4 . . 1 . . 2 . . . . . 3 . 2 Melee 1 | . . . . . . . . . . 1 1 1 . . . . . . . . . . . . . 1 . . Uniques/NPCs Destroyed . | . . . . . . . . . . . . . . . . . . . . . . . . . . . . . Combat | -11 -10 -10 -10 -9 -8 -8 -7 -7 -7 -7 -7 -7 -6 -6 -6 -6 -5 -5 -5 -5 -5 -4 -4 -4 -4 -3 -2 -1 -------- Run | Yrd Mat Min Exi Min Mat Gar Fac Gar Fac Gar Fac Gar Fac Low Low Dat Pro Fac Upp Upp War Pro Fac Ext Cet Res Res Acc Hostile Shots Fired 1824 | . 40 71 . . 80 78 11 173 16 145 51 99 184 57 1 . 45 34 61 77 24 37 26 83 9 31 2 389 Missed 594 | . 8 11 . . 32 26 2 73 7 52 14 33 69 14 . . 17 7 23 20 8 16 7 30 2 8 1 114 Damage Taken 19460 | . 463 902 . . 738 595 165 881 116 852 773 647 1297 520 18 . 415 756 415 928 368 549 273 910 96 504 12 6267 Core 1733 | . 77 99 . . 114 58 19 105 15 126 58 37 127 40 . . 50 . 42 47 50 . 33 13 14 117 . 492 Absorbed by Shields 729 | . . . . . 101 39 62 214 . . . . . . . . . . . . 10 . . 209 94 . . . Reduced by Siege Mode 64 | . . . . . . . . . . . . . . . . . . . . . . . . . . . . 64 Redirected to Shielding 156 | . . . . . . . . . . . . . . . . . . 102 47 7 . . . . . . . . Ignored by Resistances 2262 | . . . . . . 63 28 196 10 155 25 118 229 114 . . 70 . 161 . 81 34 152 306 . 119 6 395 Regen/Repaired (Parts) 433 | . . . . . . . 168 . . . . . . . . . . 99 . . 166 . . . . . . . Core Remaining (%) 75 | 100 . . . 29 . 68 . . . . . 48 . . . . 74 . . . . 86 . . 94 91 100 69 Volleys Fired 891 | . 51 59 . 1 36 70 20 48 16 61 18 39 87 18 3 . 21 19 24 34 9 34 20 37 8 22 6 130 Largest 6 | . 2 2 . 2 3 3 3 3 3 3 2 2 3 3 3 . 3 3 3 4 3 3 5 5 3 5 6 6 Hottest 484 | . 70 98 . 43 250 250 170 285 285 268 250 188 250 315 228 . 250 250 265 320 250 169 360 394 252 276 484 470 Shots Fired 1839 | . 102 80 . 2 66 149 26 85 36 122 35 49 123 41 7 . 51 47 56 100 17 60 69 104 15 85 29 283 Gun 763 | . 102 33 . 2 38 84 4 60 23 24 . 18 60 20 5 . 12 . . 11 2 33 41 44 . 43 9 95 Cannon 955 | . . 33 . . 22 61 9 16 12 79 35 19 30 20 2 . 38 47 56 89 15 27 28 60 15 42 18 182 Launcher 119 | . . 14 . . 6 4 13 9 1 19 . 12 33 1 . . 1 . . . . . . . . . . 6 Special 2 | . . . . . . . . . . . . . . . . . . . . . . . . . . . 2 . Kinetic 783 | . 51 39 . 2 56 103 6 60 23 36 34 19 12 16 2 . 18 29 22 29 10 36 24 39 6 70 6 35 Thermal 811 | . 51 27 . . 4 42 7 16 12 67 1 18 78 24 5 . 32 18 34 66 7 8 26 65 9 5 17 172 Explosive 118 | . . 14 . . 6 4 13 9 1 19 . 12 33 1 . . 1 . . . . . . . . . . 5 Electromagnetic 5 | . . . . . . . . . . . . . . . . . . . . 5 . . . . . . . . Entropic 121 | . . . . . . . . . . . . . . . . . . . . . . 16 19 . . 10 6 70 Robot Hit Streak 12 | . 8 8 . 1 5 10 2 12 10 9 5 8 10 5 2 . 7 7 6 4 6 8 5 7 6 6 9 11 Robot Miss Streak 11 | . 6 6 . 2 11 6 6 5 3 5 3 3 6 4 3 . 7 6 8 9 3 5 6 9 2 2 5 6 Penetration Max 2 | . . . . . . . . 1 2 . . . . . . . . . . . . 1 1 . . 1 . . Secondary Targets 1 | . . . . . . . . . . . . . 1 . . . . . . . . . . . . . . . Max Gunslinging Chain 1 | . . . . . . . . . . . . . 1 . . . . . . . . . . . . . . . Shots Hit Robots 878 | . 59 42 . 1 38 66 6 31 23 42 19 33 56 22 2 . 17 28 25 34 11 37 33 48 8 37 13 147 Core Hits 1057 | . 29 25 . 1 44 51 26 30 20 45 8 33 207 17 2 . 15 16 16 38 33 22 23 67 20 28 6 235 Critical Kills 15 | . . . . . . . . 2 2 4 . . . . . . . . . 1 . . 1 1 . 2 1 1 Critical Parts Destroyed 16 | . . . . . . . . 4 3 1 . . . . . . . . . . 1 . 2 . . 1 . 4 Critical Strikes 66 | . 3 . . . . . . 6 5 8 . 7 1 1 . . . 1 . 1 1 4 9 1 . 9 2 7 Burn 3 | . 3 . . . . . . . . . . . . . . . . . . . . . . . . . . . Meltdown 5 | . . . . . . . . . 1 1 . . . . . . . . . 1 . . . . . . 1 1 Destroy 22 | . . . . . . . . 6 4 6 . . . . . . . . . . 1 . 2 1 . 2 . . Blast 22 | . . . . . . . . . . . . 3 1 1 . . . . . . . 4 6 . . 5 1 1 Impale 8 | . . . . . . . . . . 1 . 4 . . . . . 1 . . . . . . . 1 . 1 Detonate 6 | . . . . . . . . . . . . . . . . . . . . . . . 1 . . 1 . 4 Melee Attacks 97 | . . . . . . . . . . 4 4 49 4 . . . . 30 . . . . . . . 4 . 2 Impact . | . . . . . . . . . . . . . . . . . . . . . . . . . . . . . Slashing . | . . . . . . . . . . . . . . . . . . . . . . . . . . . . . Piercing 95 | . . . . . . . . . . 4 2 49 4 . . . . 30 . . . . . . . 4 . 2 Sneak Attacks 7 | . . . . . . . . . . . 2 . . . . . . 3 . . . . . . . 1 . 1 Combat Hostiles . | . . . . . . . . . . . . . . . . . . . . . . . . . . . . . Follow-up Attacks . | . . . . . . . . . . . . . . . . . . . . . . . . . . . . . Damage Inflicted 62337 | . 828 1278 . 18 1721 2056 2348 1535 788 2874 979 3302 12676 1279 71 . 1211 1772 1004 1873 1557 1853 2128 3023 671 1911 528 13053 Guns 10861 | . 768 323 . 18 312 582 49 378 209 137 . 254 953 242 30 . 56 . . 49 56 899 1119 643 . 687 58 3039 Cannons 18207 | . . 415 . . 284 695 75 129 279 849 854 702 906 515 41 . 506 1237 1004 1292 426 954 908 1113 263 735 440 3585 Explosions 31393 | . 60 540 . . 1125 779 2224 1028 300 1715 74 1335 10735 522 . . 649 248 . 532 1075 . 101 1267 408 327 . 6349 Melee 1838 | . . . . . . . . . . 173 51 1011 82 . . . . 287 . . . . . . . 162 . 72 Ramming 8 | . . . . . . . . . . . . . . . . . . . . . . . . . . . . 8 Kinetic 12085 | . 388 426 . 18 473 871 61 378 209 203 841 702 401 375 41 . 264 943 363 363 310 1129 824 583 37 997 167 718 Thermal 25841 | . 440 312 . . 756 774 63 415 492 783 87 254 3708 546 30 . 595 542 641 1392 1247 55 545 2440 634 397 303 8390 Explosive 17929 | . . 540 . . 441 411 2224 742 87 1715 . 1335 8485 358 . . 352 . . . . . . . . . . 1239 Electromagnetic 169 | . . . . . 51 . . . . . . . . . . . . . . 118 . . . . . . . . Impact . | . . . . . . . . . . . . . . . . . . . . . . . . . . . . . Slashing . | . . . . . . . . . . . . . . . . . . . . . . . . . . . . . Piercing 1838 | . . . . . . . . . . 173 51 1011 82 . . . . 287 . . . . . . . 162 . 72 Entropic 4467 | . . . . . . . . . . . . . . . . . . . . . . 669 759 . . 355 58 2626 Highest Corruption 7 | . . 4 4 4 . . . . 3 3 7 7 3 3 . . . 4 4 4 4 . 2 2 2 1 . 4 Average Corruption 3 | . . 4 4 4 . . . . 2 3 4 7 1 3 . . . 4 4 4 4 . 1 2 2 1 . 2 Corruption Purged 7 | . . . . . . . . . . . . . . . . . . . . . . . . . . . . 7 Corruption Blocked . | . . . . . . . . . . . . . . . . . . . . . . . . . . . . . Effects 235 | . . 13 7 1 . . . . 8 22 27 43 3 4 . . . 1 24 45 . . 2 13 4 4 . 14 Message Errors 60 | . . 6 . . . . . . 3 3 8 14 . 1 . . . . 7 10 . . 1 2 . . . 5 Matter Fused 56 | . . 1 3 1 . . . . . 4 9 11 . 1 . . . . 4 13 . . . 3 1 2 . 3 Heat Flow Errors 32 | . . 1 2 . . . . . 1 5 1 6 1 2 . . . . . 8 . . . 1 1 1 . 2 Energy Discharges 34 | . . 2 1 . . . . . 2 5 5 4 . . . . . . 5 6 . . 1 2 . . . 1 Parts Rejected 2 | . . . . . . . . . . 1 . . 1 . . . . . . . . . . . . . . . Parts Fused 3 | . . . 1 . . . . . 1 . . 1 . . . . . . . . . . . . . . . . Data Loss (minor) 23 | . . . . . . . . . . 4 2 4 . . . . . 1 2 5 . . . 2 1 1 . 1 Data Loss (major) 7 | . . 1 . . . . . . 1 . 1 . . . . . . . 2 . . . . 2 . . . . Misfires 12 | . . 1 . . . . . . . . 1 1 . . . . . . 4 2 . . . 1 1 . . 1 Alerts 4 | . . 1 . . . . . . . . . 2 . . . . . . . 1 . . . . . . . . Weapon Failures 2 | . . . . . . . . . . . . . 1 . . . . . . . . . . . . . . 1 Overload Shots 3 | . . . . . . . . . . . . . . . . . . . . . . . . . . . . 3 Overflow Damage 1769 | . 30 50 . . 11 28 115 28 5 56 84 335 242 90 . . 36 107 4 31 16 67 132 . 7 87 38 170 Projectiles 811 | . . 9 . . . . . . 5 . 84 130 73 28 . . 4 107 4 28 16 67 108 . 7 5 38 98 Explosions 732 | . 30 41 . . 11 28 115 28 . 56 . 63 167 62 . . 32 . . 3 . . 24 . . . . 72 Melee 226 | . . . . . . . . . . . . 142 2 . . . . . . . . . . . . 82 . . Knockbacks 52 | . . 1 . . 3 7 . . . . 2 2 . 1 . . 1 5 . 1 1 4 5 1 1 8 1 8 Impact . | . . . . . . . . . . . . . . . . . . . . . . . . . . . . . Kinetic 50 | . . 1 . . 3 7 . . . . 2 2 . 1 . . 1 4 . 1 1 4 5 1 1 7 1 8 Secondary 2 | . . . . . . . . . . . . . . . . . . 1 . . . . . . . 1 . . Self-Inflicted Damage 589 | . 84 89 . . 18 13 . 54 . . . . 9 10 . . 7 . . . . . 45 . . . . 260 Shots 21 | . 1 2 . . 1 1 . 1 . . . . 1 1 . . 1 . . . . . 1 . . . . 11 Rammed 1 | . . . . . . . . . . . . . . . . . . . . . . . . . . . . 1 Targets Rammed 1 | . . . . . . . . . . . . . . . . . . . . . . . . . . . . 1 Kicked . | . . . . . . . . . . . . . . . . . . . . . . . . . . . . . Crushed . | . . . . . . . . . . . . . . . . . . . . . . . . . . . . . Highest Temperature 397 | . 205 303 175 . 230 226 126 360 . . 24 16 292 186 . . 276 320 . 339 397 . 236 281 . . 22 360 Average Temperature 86 | . 64 74 83 . 73 48 44 115 . . 24 12 87 82 . . 146 96 . 101 206 . 103 107 . . 22 123 Received Heat Transfer 3183 | . 180 229 . . 159 184 18 90 36 177 84 243 373 . 9 . 133 144 . 75 67 125 27 167 . 96 . 567 Effects 6 | . . 2 . . . . . 1 . . . . . . . . . 2 . . . . . . . . . 1 Shutdowns 1 | . . . . . . . . . . . . . . . . . . 1 . . . . . . . . . . Energy Bleed 2 | . . 1 . . . . . . . . . . . . . . . . . . . . . . . . . 1 Matter Decay 1 | . . 1 . . . . . . . . . . . . . . . . . . . . . . . . . . Short Circuit 2 | . . . . . . . . 1 . . . . . . . . . 1 . . . . . . . . . . Siege Activations 2 | . . . . . . . . . . . . . . . . . . . . . . . . . . . . 2 Total Turns 9 | . . . . . . . . . . . . . . . . . . . . . . . . . . . . 9 Longest Duration 7 | . . . . . . . . . . . . . . . . . . . . . . . . . . . . 7 Robots Corrupted . | . . . . . . . . . . . . . . . . . . . . . . . . . . . . . Combat Hostiles . | . . . . . . . . . . . . . . . . . . . . . . . . . . . . . Parts Fried 2 | . . . . . . . . . . 1 . . . . . . . . . . . . . 1 . . . . Impact Corruptions . | . . . . . . . . . . . . . . . . . . . . . . . . . . . . . Robots Melted 107 | . . . . . 3 2 . . 2 1 1 . 18 . . . 1 1 . 2 9 . . 10 8 . 1 48 Combat Hostiles 103 | . . . . . 3 2 . . 1 1 1 . 17 . . . 1 1 . 2 9 . . 10 8 . 1 46 Parts Melted 393 | . 3 . . . 8 8 . 10 8 2 1 . 68 9 . . 5 5 . 20 21 . 1 39 12 . 1 172 Heat Transferred 87701 | . 1382 629 . . 3760 2487 100 1780 1413 1001 400 259 13598 1527 37 . 2121 980 775 4794 6809 74 618 8640 3145 324 333 30715 Parts Sabotaged 3 | . . . . . . . . . . . . . 1 . . . . . . . . . . . . . . 2 Parts Stolen . | . . . . . . . . . . . . . . . . . . . . . . . . . . . . . Parts Stripped . | . . . . . . . . . . . . . . . . . . . . . . . . . . . . . Power Chain Reactions . | . . . . . . . . . . . . . . . . . . . . . . . . . . . . . Alert | -11 -10 -10 -10 -9 -8 -8 -7 -7 -7 -7 -7 -7 -6 -6 -6 -6 -5 -5 -5 -5 -5 -4 -4 -4 -4 -3 -2 -1 ------- Run | Yrd Mat Min Exi Min Mat Gar Fac Gar Fac Gar Fac Gar Fac Low Low Dat Pro Fac Upp Upp War Pro Fac Ext Cet Res Res Acc Peak Influence 3158 | . 392 175 . . 640 1720 1271 1962 1070 2206 1207 1943 3158 . . . . 210 . . . . 238 1238 1033 1557 1085 2682 Initial 1157 | . . 88 . . . 416 903 889 1029 734 1157 781 1019 . . . . . . . . . . 98 692 619 761 518 Average 936 | . 188 59 . . 287 1088 1079 1457 992 1645 1134 1389 1586 . . . . 64 . . . . 112 725 875 1140 994 1354 Maximum Alert Level 5 | . 1 . . . 2 5 4 5 3 5 4 5 5 . . . . 1 . . . . 1 4 3 4 3 5 Low Security (%) 24 | 100 53 100 . 100 46 . . . . . . . . . . . . 94 . . . . 77 4 . . . . Level 1 4 | . 46 . . . 16 . . . . . . . . . . . . 5 . . . . 22 21 . . . . Level 2 6 | . . . . . 37 17 . . . . . . . . . . . . . . . . . 27 3 24 . 18 Level 3 23 | . . . . . . 44 42 29 100 11 21 23 19 . . . . . . . . . . 20 96 14 100 16 Level 4 26 | . . . . . . 18 57 26 . 33 78 54 38 . . . . . . . . . . 25 . 60 . 36 Level 5 10 | . . . . . . 19 . 43 . 54 . 22 . . . . . . . . . . . . . . . 2 High Security 4 | . . . . . . . . . . . . . 41 . . . . . . . . . . . . . . 25 Max Security . | . . . . . . . . . . . . . . . . . . . . . . . . . . . . . Squads Dispatched 98 | . 2 1 . . 5 . 2 . 2 . 6 . 29 . . . . 8 . . . . 3 4 . 10 1 25 Investigation 16 | . 1 1 . . . . . . 1 . 4 . 2 . . . . 4 . . . . . . . 2 1 . Extermination 9 | . . . . . . . 1 . . . 1 . 1 . . . . 2 . . . . 2 . . . . 2 Reinforcement 22 | . 1 . . . 3 . . . . . . . . . . . . 2 . . . . 1 1 . 8 . 6 Assault 47 | . . . . . . . . . 1 . 1 . 25 . . . . . . . . . . 3 . . . 17 Garrison 4 | . . . . . 2 . 1 . . . . . 1 . . . . . . . . . . . . . . . Intercept . | . . . . . . . . . . . . . . . . . . . . . . . . . . . . . Searches Triggered . | . . . . . . . . . . . . . . . . . . . . . . . . . . . . . Data Miner Redirects 8 | . . . . . . . . . . . . . . . . . . 2 . . . . . 3 . . . 3 Construction Impeded 1 | . . . . . . . . . . . . . . . . . . . . . . . . . . . . 1 Haulers Reinforced 7 | . . . . . . . . . . . . . . . . . . 1 . . . . 1 . . 3 . 2 Active Scanning Responses . | . . . . . . . . . . . . . . . . . . . . . . . . . . . . . Cargo Convoy Interrupts . | . . . . . . . . . . . . . . . . . . . . . . . . . . . . . Stealth | -11 -10 -10 -10 -9 -8 -8 -7 -7 -7 -7 -7 -7 -6 -6 -6 -6 -5 -5 -5 -5 -5 -4 -4 -4 -4 -3 -2 -1 --------- Run | Yrd Mat Min Exi Min Mat Gar Fac Gar Fac Gar Fac Gar Fac Low Low Dat Pro Fac Upp Upp War Pro Fac Ext Cet Res Res Acc Distress Signals 35 | . . 2 . . 5 . . . . . . . . . . . . 1 . . 3 . . 2 2 3 10 7 Communications Jammed 2 | . . . . . . . . . . . . . . . . . . . . . . . 1 . . 1 . . Distress Signals 2 | . . . . . . . . . . . . . . . . . . . . . . . 1 . . 1 . . Times Spotted 602 | . 17 25 . . 29 30 8 13 10 28 9 16 88 9 1 . 10 14 11 28 21 15 13 44 10 22 8 123 Peak Tracking Total 19 | . 4 6 . . 7 4 4 4 6 5 3 5 19 4 1 . 5 3 6 5 18 3 5 9 5 3 4 19 Tactical Retreats 23 | . 2 1 . . 2 3 . . 1 3 . 2 1 . . . . 1 . . . . . 2 . . . 5 Traps | -11 -10 -10 -10 -9 -8 -8 -7 -7 -7 -7 -7 -7 -6 -6 -6 -6 -5 -5 -5 -5 -5 -4 -4 -4 -4 -3 -2 -1 ------- Run | Yrd Mat Min Exi Min Mat Gar Fac Gar Fac Gar Fac Gar Fac Low Low Dat Pro Fac Upp Upp War Pro Fac Ext Cet Res Res Acc Traps Triggered 37 | . 2 . . . 2 5 1 3 2 4 6 4 . . . . . 1 . . . . . 5 . 1 . 1 Indirectly 1 | . . . . . 1 . . . . . . . . . . . . . . . . . . . . . . . Trap Hack Attempts . | . . . . . . . . . . . . . . . . . . . . . . . . . . . . . Triggered . | . . . . . . . . . . . . . . . . . . . . . . . . . . . . . Disarmed . | . . . . . . . . . . . . . . . . . . . . . . . . . . . . . Reprogrammed . | . . . . . . . . . . . . . . . . . . . . . . . . . . . . . Reused . | . . . . . . . . . . . . . . . . . . . . . . . . . . . . . Traps Extracted . | . . . . . . . . . . . . . . . . . . . . . . . . . . . . . Installed . | . . . . . . . . . . . . . . . . . . . . . . . . . . . . . Triggered 10 | . . . . . . . . . . . . . . . 1 . . . . . 9 . . . . . . . Machines | -11 -10 -10 -10 -9 -8 -8 -7 -7 -7 -7 -7 -7 -6 -6 -6 -6 -5 -5 -5 -5 -5 -4 -4 -4 -4 -3 -2 -1 ---------- Run | Yrd Mat Min Exi Min Mat Gar Fac Gar Fac Gar Fac Gar Fac Low Low Dat Pro Fac Upp Upp War Pro Fac Ext Cet Res Res Acc Machines Disabled 75 | . 1 1 . . 1 6 2 11 . 9 1 7 7 . . . . 8 . . . 2 1 6 . 3 2 7 Max in Single Turn 3 | . 1 1 . . 1 1 1 2 . 2 1 1 2 . . . . 3 . . . 1 1 1 . 1 1 1 Garrison Access 7 | . . . . . . . . . . . 1 . 1 . . . . 2 . . . . . . . . 3 . Garrison Relay 18 | . . . . . . 4 . 5 . 4 . 5 . . . . . . . . . . . . . . . . Phase Generator 2 | . . . . . . . . 1 . 1 . . . . . . . . . . . . . . . . . . Energy Cycler 2 | . . . . . . . . . . . . . . . . . . . . . . . . 1 . . . 1 Machines Repaired . | . . . . . . . . . . . . . . . . . . . . . . . . . . . . . Machines Dismantled 2 | . . . . . . . . . . . . . . . . . . . . . . . . . . . 2 . Machines Sabotaged . | . . . . . . . . . . . . . . . . . . . . . . . . . . . . . Overloaded Fab Kills . | . . . . . . . . . . . . . . . . . . . . . . . . . . . . . Hacking | -11 -10 -10 -10 -9 -8 -8 -7 -7 -7 -7 -7 -7 -6 -6 -6 -6 -5 -5 -5 -5 -5 -4 -4 -4 -4 -3 -2 -1 --------- Run | Yrd Mat Min Exi Min Mat Gar Fac Gar Fac Gar Fac Gar Fac Low Low Dat Pro Fac Upp Upp War Pro Fac Ext Cet Res Res Acc Machines Accessed 78 | . 3 2 2 . 2 5 5 4 6 3 10 2 4 . . 4 . 11 2 1 2 . . 4 1 2 1 2 Terminals 39 | . 3 . . . 1 5 1 4 5 3 4 2 1 . . . . 5 . . . . . 4 1 . . . Fabricators 7 | . . . . . . . 2 . . . 3 . . . . . . 2 . . . . . . . . . . Repair Stations 2 | . . . . . . . 1 . . . . . 1 . . . . . . . . . . . . . . . Recycling Units 2 | . . . . . . . . . . . . . . . . . . . . . . . . . . 1 . 1 Scanalyzers 7 | . . . . . . . . . . . 2 . 1 . . . . 2 . . . . . . . 1 . 1 Garrison Access 8 | . . . . . 1 . 1 . 1 . 1 . 1 . . . . 2 . . . . . . . . 1 . Total Hacks 206 | . 8 2 2 . 5 10 16 8 17 5 31 2 10 . . 33 . 28 5 1 5 . . 11 1 3 1 2 Successful 132 | . 3 2 2 . 3 3 10 3 12 3 16 2 6 . . 33 . 15 5 1 5 . . 3 1 1 1 2 Failed 73 | . 5 . . . 2 7 6 5 5 2 14 . 4 . . . . 13 . . . . . 8 . 2 . . Catastrophic 15 | . 1 . . . 1 2 2 1 1 . 3 . 1 . . . . 3 . . . . . . . . . . Database Lockouts 1 | . . . . . . . . . . . 1 . . . . . . . . . . . . . . . . . Manual 56 | . 6 . 1 . 4 . 4 . 6 . 14 . 6 . . . . 5 . . 1 . . 4 1 1 1 2 Terminals 97 | . 8 . . . 4 10 1 8 16 5 17 2 4 . . . . 10 . . . . . 11 1 . . . Fabricators 21 | . . . . . . . 9 . . . 7 . . . . . . 5 . . . . . . . . . . Repair Stations 6 | . . . . . . . 5 . . . . . 1 . . . . . . . . . . . . . . . Recycling Units 3 | . . . . . . . . . . . . . . . . . . . . . . . . . . 2 . 1 Scanalyzers 20 | . . . . . . . . . . . 6 . 3 . . . . 9 . . . . . . . 1 . 1 Garrison Access 11 | . . . . . 1 . 1 . 1 . 1 . 2 . . . . 4 . . . . . . . . 1 . Terminal Hacks 78 | . 1 2 2 . . 3 . 3 8 3 5 2 1 . . 33 . 1 5 1 5 . . 2 1 . . . Record 20 | . . . 1 . . . . . . . . . . . . 11 . . 4 . 4 . . . . . . . Part Schematic 16 | . . . . . . . . . 1 . 2 . . . . 13 . . . . . . . . . . . . Robot Schematic 6 | . . . . . . . . . . . . . . . . 6 . . . . . . . . . . . . Robot Analysis 8 | . 1 . . . . . . . 4 . 3 . . . . . . . . . . . . . . . . . Prototype ID Bank 5 | . . . . . . . . . 1 . . . . . . 3 . . . . . . . 1 . . . . Open Door 10 | . . 2 . . . 2 . . . 1 . 1 . . . . . . 1 1 1 . . . 1 . . . Emergency Access Points 3 | . . . . . . 1 . . . 1 . 1 . . . . . . . . . . . . . . . . Locate Traps 4 | . . . . . . . . . 2 . . . . . . . . 1 . . . . . 1 . . . . Zone Layout 1 | . . . . . . . . . . . . . 1 . . . . . . . . . . . . . . . Garrison Registry 1 | . . . . . . . . 1 . . . . . . . . . . . . . . . . . . . . Patrol Navigation 2 | . . . . . . . . 1 . 1 . . . . . . . . . . . . . . . . . . Security Stations 1 | . . . . . . . . 1 . . . . . . . . . . . . . . . . . . . . Derelict Proto ID Bank 1 | . . . 1 . . . . . . . . . . . . . . . . . . . . . . . . . Fabricator Hacks 8 | . . . . . . . 3 . . . 1 . . . . . . 4 . . . . . . . . . . Network Status 4 | . . . . . . . 1 . . . 1 . . . . . . 2 . . . . . . . . . . Load Schematic 1 | . . . . . . . . . . . . . . . . . . 1 . . . . . . . . . . Build 3 | . . . . . . . 2 . . . . . . . . . . 1 . . . . . . . . . . Repair Station Hacks 4 | . . . . . . . 4 . . . . . . . . . . . . . . . . . . . . . Scan Component 2 | . . . . . . . 2 . . . . . . . . . . . . . . . . . . . . . Repair 2 | . . . . . . . 2 . . . . . . . . . . . . . . . . . . . . . Recycling Unit Hacks 1 | . . . . . . . . . . . . . . . . . . . . . . . . . . 1 . . Report Inventory 1 | . . . . . . . . . . . . . . . . . . . . . . . . . . 1 . . Scanalyzer 13 | . . . . . . . . . . . 4 . 2 . . . . 7 . . . . . . . . . . Insert Component 6 | . . . . . . . . . . . 2 . 1 . . . . 3 . . . . . . . . . . Analyze 7 | . . . . . . . . . . . 2 . 1 . . . . 4 . . . . . . . . . . Garrison Access Hacks 5 | . . . . . 1 . 1 . 1 . 1 . . . . . . 1 . . . . . . . . . . Unlock Access 4 | . . . . . 1 . 1 . 1 . 1 . . . . . . . . . . . . . . . . . Seal Access 1 | . . . . . . . . . . . . . . . . . . 1 . . . . . . . . . . Unauthorized Hacks 23 | . 2 . . . 2 . 2 . 3 . 5 . 3 . . . . 2 . . . . . 1 . . 1 2 Terminals 13 | . 2 . . . 2 . . . 3 . 3 . 1 . . . . 1 . . . . . 1 . . . . Track 1 | . . . . . 1 . . . . . . . . . . . . . . . . . . . . . . . Botnet 10 | . 2 . . . 1 . . . 2 . 2 . 1 . . . . 1 . . . . . 1 . . . . Disrupt 2 | . . . . . . . . . 1 . 1 . . . . . . . . . . . . . . . . . Fabricators 2 | . . . . . . . 1 . . . 1 . . . . . . . . . . . . . . . . . Haulers 2 | . . . . . . . 1 . . . 1 . . . . . . . . . . . . . . . . . Repair Stations 2 | . . . . . . . 1 . . . . . 1 . . . . . . . . . . . . . . . Mechanics 2 | . . . . . . . 1 . . . . . 1 . . . . . . . . . . . . . . . Recycling Units 1 | . . . . . . . . . . . . . . . . . . . . . . . . . . . . 1 Recyclers 1 | . . . . . . . . . . . . . . . . . . . . . . . . . . . . 1 Scanalyzers 3 | . . . . . . . . . . . 1 . 1 . . . . . . . . . . . . . . 1 Researchers 1 | . . . . . . . . . . . . . . . . . . . . . . . . . . . . 1 Extract 2 | . . . . . . . . . . . 1 . 1 . . . . . . . . . . . . . . . Garrison Access 2 | . . . . . . . . . . . . . . . . . . 1 . . . . . . . . 1 . Jam 2 | . . . . . . . . . . . . . . . . . . 1 . . . . . . . . 1 . Data Cores Recovered 2 | . . . . . . . . . . . 2 . . . . . . . . . . . . . . . . . Used 1 | . . . . . . . . . . . 1 . . . . . . . . . . . . . . . . . Hacking Detections 56 | . 3 . . . 1 3 4 4 6 2 10 1 3 . . . . 10 . . . . . 4 1 2 . 2 Full Trace Events 12 | . 1 . . . 1 1 . 2 1 . 2 . 1 . . . . 3 . . . . . . . . . . Feedback Events 1 | . . . . . . . . . . . 1 . . . . . . . . . . . . . . . . . Corruption 1 | . . . . . . . . . . . 1 . . . . . . . . . . . . . . . . . Feedback Blocked . | . . . . . . . . . . . . . . . . . . . . . . . . . . . . . Robot Schematics Acquired 6 | . . . . . . . . . . . . . . . . 6 . . . . . . . . . . . . Robots Built 6 | . . . . . . . 4 . . . . . . . . . . 2 . . . . . . . . . . Authchips . | . . . . . . . . . . . . . . . . . . . . . . . . . . . . . Time 300 | . . . . . . . 148 . . . . . . . . . . 152 . . . . . . . . . . Total Robot Build Rating 20 | . . . . . . . 10 . . . . . . . . . . 10 . . . . . . . . . . Part Schematics Acquired 38 | . . . . . . . . . 1 . 14 . 8 . . 13 . 2 . . . . . . . . . . Parts Built . | . . . . . . . . . . . . . . . . . . . . . . . . . . . . . Authchips . | . . . . . . . . . . . . . . . . . . . . . . . . . . . . . Time . | . . . . . . . . . . . . . . . . . . . . . . . . . . . . . Total Part Build Rating . | . . . . . . . . . . . . . . . . . . . . . . . . . . . . . Parts Repaired 2 | . . . . . . . 2 . . . . . . . . . . . . . . . . . . . . . Time 64 | . . . . . . . 64 . . . . . . . . . . . . . . . . . . . . . Parts Recycled . | . . . . . . . . . . . . . . . . . . . . . . . . . . . . . Recycled Matter . | . . . . . . . . . . . . . . . . . . . . . . . . . . . . . Retrieved Matter . | . . . . . . . . . . . . . . . . . . . . . . . . . . . . . Retrieved Components . | . . . . . . . . . . . . . . . . . . . . . . . . . . . . . Parts Scanalyzed 5 | . . . . . . . . . . . 2 . 1 . . . . 2 . . . . . . . . . . Part Schematics Acquired 4 | . . . . . . . . . . . 2 . . . . . . 2 . . . . . . . . . . Parts Damaged 3 | . . . . . . . . . . . 1 . . . . . . 2 . . . . . . . . . . Bothacking | -11 -10 -10 -10 -9 -8 -8 -7 -7 -7 -7 -7 -7 -6 -6 -6 -6 -5 -5 -5 -5 -5 -4 -4 -4 -4 -3 -2 -1 ------------ Run | Yrd Mat Min Exi Min Mat Gar Fac Gar Fac Gar Fac Gar Fac Low Low Dat Pro Fac Upp Upp War Pro Fac Ext Cet Res Res Acc Used RIF Installer . | . . . . . . . . . . . . . . . . . . . . . . . . . . . . . Robots Hacked 1 | . . . . . . . . . . . 1 . . . . . . . . . . . . . . . . . Non-combat 1 | . . . . . . . . . . . 1 . . . . . . . . . . . . . . . . . Combat . | . . . . . . . . . . . . . . . . . . . . . . . . . . . . . Robot Hacks Applied 2 | . . . . . . . . . . . 2 . . . . . . . . . . . . . . . . . no_distress 1 | . . . . . . . . . . . 1 . . . . . . . . . . . . . . . . . find_recycling 1 | . . . . . . . . . . . 1 . . . . . . . . . . . . . . . . . Relay Couplers Released 79 | . . . . . . 17 . 21 . 14 2 24 . . . . . . . . . . . . . . 1 . Machine Destruction 75 | . . . . . . 17 . 21 . 14 2 20 . . . . . . . . . . . . . . 1 . Programmers 4 | . . . . . . . . . . . . 4 . . . . . . . . . . . . . . . . Fabnet Peak Effective % . | . . . . . . . . . . . . . . . . . . . . . . . . . . . . . Robots Rewired 20 | . . . . . . . . . . . . . . . . . . . . . 5 2 . 13 . . . . Allies Hacked 2 | . . . . . . 1 . . . . . . . . . . . . . . . . 1 . . . . . Hacks Repelled . | . . . . . . . . . . . . . . . . . . . . . . . . . . . . . Allies | -11 -10 -10 -10 -9 -8 -8 -7 -7 -7 -7 -7 -7 -6 -6 -6 -6 -5 -5 -5 -5 -5 -4 -4 -4 -4 -3 -2 -1 -------- Run | Yrd Mat Min Exi Min Mat Gar Fac Gar Fac Gar Fac Gar Fac Low Low Dat Pro Fac Upp Upp War Pro Fac Ext Cet Res Res Acc Total Allies 42 | . . . . 1 . 3 4 . . 3 . 1 . . . . . 2 . . 5 2 . 16 5 . . . Largest Group 12 | . . . . 1 1 2 2 2 . 3 . 1 1 . . . . 2 . . 5 2 2 8 12 11 1 . Highest-Rated Group 842 | . . . . 31 31 195 64 64 . 181 . 25 25 . . . . 82 . . 237 95 95 420 842 813 96 . Highest-Rated Ally 179 | . . . . 31 31 179 32 32 . 80 . 25 25 . . . . 41 . . 65 48 48 159 159 159 96 . Warlord Squad Rendezvous 3 | . . . . . . . . . . . . . . . . . . 3 . . . . . . . . . . Muscle 1 | . . . . . . . . . . . . . . . . . . 1 . . . . . . . . . . Geek 1 | . . . . . . . . . . . . . . . . . . 1 . . . . . . . . . . Pyro 1 | . . . . . . . . . . . . . . . . . . 1 . . . . . . . . . . Total Orders 41 | . . 3 . 1 . . . . . . 1 . 1 . . . 1 . 1 1 . 1 . . . 10 11 10 ROAM 1 | . . . . . . . . . . . . . . . . . . . . . . . . . . 1 . . FOLLOW 2 | . . 1 . . . . . . . . . . . . . . . . . . . . . . . 1 . . EXPLORE 27 | . . 1 . . . . . . . . . . . . . . . . . . . . . . . 5 11 10 RETURN 11 | . . 1 . 1 . . . . . . 1 . 1 . . . 1 . 1 1 . 1 . . . 3 . . Ally Attacks 298 | . . . . . 8 14 4 2 . 38 . . 9 . . . . 5 . . 9 6 7 95 16 82 3 . Total Damage 9825 | . . . . . 102 563 137 57 . 997 . . 215 . . . . 273 . . 443 164 159 3430 328 2957 . . Kills 68 | . . . . . 1 7 2 1 . 10 . . 4 . . . . 2 . . 1 3 3 23 1 10 . . Allies Corrupted 3 | . . . . . . . . . . . . . . . . . . . . . . . . 2 . 1 . . Allies Melted 1 | . . . . . . . . . . . . . . . . . . 1 . . . . . . . . . . Intel | -11 -10 -10 -10 -9 -8 -8 -7 -7 -7 -7 -7 -7 -6 -6 -6 -6 -5 -5 -5 -5 -5 -4 -4 -4 -4 -3 -2 -1 ------- Run | Yrd Mat Min Exi Min Mat Gar Fac Gar Fac Gar Fac Gar Fac Low Low Dat Pro Fac Upp Upp War Pro Fac Ext Cet Res Res Acc Robot Analysis Total 8 | . 1 . . . . . . . 4 . 3 . . . . . . . . . . . . . . . . . Derelict Logs Recovered 12 | . . 2 . . . . . . . . . . . 2 3 . 1 . . 1 . 3 . . . . . . Drone Launches 42 | . . 2 . 1 . . . 1 1 . 1 . 1 1 . . 1 . 2 1 . 1 . . . 8 9 12 Drone Recoveries 26 | . . 2 . 1 . . . . . . 1 . 1 . . . 2 . 1 2 . 1 . . . 3 4 8 Exploration | -11 -10 -10 -10 -9 -8 -8 -7 -7 -7 -7 -7 -7 -6 -6 -6 -6 -5 -5 -5 -5 -5 -4 -4 -4 -4 -3 -2 -1 ------------- Run | Yrd Mat Min Exi Min Mat Gar Fac Gar Fac Gar Fac Gar Fac Low Low Dat Pro Fac Upp Upp War Pro Fac Ext Cet Res Res Acc Turns Passed 29182 | 52 574 1521 252 187 322 1482 698 1624 795 1609 1041 1373 1356 902 1368 125 887 2336 1237 2275 858 859 650 1089 371 1166 511 1662 Spaces Moved 17188 | 43 393 1265 252 155 137 924 433 977 458 974 672 716 657 541 945 90 573 1403 731 1200 466 458 384 620 144 747 275 555 Core 4 | 4 . . . . . . . . . . . . . . . . . . . . . . . . . . . . Treads 1168 | . . . . . . . . . . . . . . . . . . . . 137 283 . . . . . 193 555 Legs 78 | . . . . . . . . . . . . . . . . . . . . . 78 . . . . . . . Wheels 15938 | 39 393 1265 252 155 137 924 433 977 458 974 672 716 657 541 945 90 573 1403 731 1063 105 458 384 620 144 747 82 . Hover . | . . . . . . . . . . . . . . . . . . . . . . . . . . . . . Flight . | . . . . . . . . . . . . . . . . . . . . . . . . . . . . . Fastest Speed 50 | 50 90 95 95 110 120 115 120 120 135 120 135 130 145 140 140 140 140 123 123 160 130 130 128 138 122 119 119 160 Average Speed 140 | 89 98 101 97 114 127 124 130 143 140 134 135 141 145 146 140 140 140 139 154 174 160 156 132 138 133 129 148 231 Slowest Speed 320 | 100 105 125 110 125 160 160 160 150 150 195 150 145 160 160 140 140 140 260 165 320 240 160 160 163 270 138 240 240 Overloaded Moves . | . . . . . . . . . . . . . . . . . . . . . . . . . . . . . Propulsion Burnouts . | . . . . . . . . . . . . . . . . . . . . . . . . . . . . . Robots Hopped . | . . . . . . . . . . . . . . . . . . . . . . . . . . . . . Cave-ins Triggered . | . . . . . . . . . . . . . . . . . . . . . . . . . . . . . Exploration Rate (%) 57 | 3 59 99 62 46 19 90 12 99 14 92 27 89 12 73 93 74 62 33 83 94 72 68 12 81 72 55 41 24 Regions Visited 28 Branch Regions 13 Pre-discovered Areas 8 | . . 2 1 . . . . . . . . . . 1 1 1 . . . . . 2 . . . . . . Known Exits Taken 16 | . . . . . 1 . 1 . 1 . 1 . 1 1 1 1 1 1 1 1 . 1 1 . . 1 1 . Unknown Exits Taken 8 | 1 1 1 1 1 . . . . . . . . . . . . . . . . 1 . . 1 1 . . . Scrap Searched 25 | . . 1 . 2 . . . . . . . . . 3 6 . . . 5 6 . 2 . . . . . . Spaces Dug 128 | . . 12 . . . . 1 . . . 8 9 3 . 1 . 6 27 . 22 . . . 6 . 14 . 19 Terrain Destroyed 1792 | . 22 168 . . 56 36 115 253 6 219 21 108 239 33 2 . 46 66 29 43 13 28 41 40 5 45 9 149 Melee 32 | . . . . . . . . . . . 1 9 . . . . . 20 . . . . . . . 2 . . Projectile 406 | . . 14 . . 3 4 4 2 3 6 20 12 25 9 2 . 22 17 29 43 7 28 28 40 5 25 9 49 AOE 1352 | . 22 154 . . 53 32 111 251 3 212 . 87 214 24 . . 24 29 . . 6 . 13 . . 17 . 100 Terrain Rammed . | . . . . . . . . . . . . . . . . . . . . . . . . . . . . . Walls Destroyed . | . . . . . . . . . . . . . . . . . . . . . . . . . . . . . Machines Disabled . | . . . . . . . . . . . . . . . . . . . . . . . . . . . . . Actions | -11 -10 -10 -10 -9 -8 -8 -7 -7 -7 -7 -7 -7 -6 -6 -6 -6 -5 -5 -5 -5 -5 -4 -4 -4 -4 -3 -2 -1 --------- Run | Yrd Mat Min Exi Min Mat Gar Fac Gar Fac Gar Fac Gar Fac Low Low Dat Pro Fac Upp Upp War Pro Fac Ext Cet Res Res Acc Total 20580 | 56 479 1425 261 162 225 1142 545 1127 581 1162 757 920 934 619 987 89 616 1665 771 1303 567 539 492 807 320 901 338 790 Wait 1084 | . 4 43 . 2 10 59 61 19 88 33 25 42 101 29 25 . 8 123 5 31 1 16 51 36 129 85 20 38 Move 17158 | 42 392 1264 251 154 136 923 432 976 457 972 671 715 656 540 944 89 572 1402 730 1199 465 457 383 619 143 746 274 554 Hop . | . . . . . . . . . . . . . . . . . . . . . . . . . . . . . Pick Up 235 | 8 20 18 1 2 10 15 6 20 3 8 8 11 17 8 5 . 2 22 3 . 5 3 6 11 5 6 . 12 Fast Attach 91 | . 1 3 . . . . 3 . 2 10 3 2 7 . 2 . . 8 . 11 16 . 4 2 7 7 2 1 Attach 239 | 6 4 8 . 2 19 10 8 11 4 13 11 11 26 15 1 . 6 12 4 8 4 4 10 7 4 1 2 28 Detach 113 | . . . 2 . 11 6 4 4 1 7 2 7 11 8 . . 2 4 1 10 6 1 5 3 4 . 1 13 Swap 157 | . 3 13 2 1 2 10 3 14 4 10 5 4 4 1 . . 3 25 2 1 4 4 4 9 5 15 3 6 Drop 247 | . 4 17 5 . 1 9 8 19 6 19 10 8 21 . 7 . 2 20 2 9 22 1 9 12 14 15 3 4 Fire 891 | . 51 59 . 1 36 70 20 48 16 61 18 39 87 18 3 . 21 19 24 34 9 34 20 37 8 22 6 130 Melee 97 | . . . . . . . . . . 4 4 49 4 . . . . 30 . . . . . . . 4 . 2 Ram . | . . . . . . . . . . . . . . . . . . . . . . . . . . . . . Kick . | . . . . . . . . . . . . . . . . . . . . . . . . . . . . . Crush 1 | . . . . . . . . . . . . . . . . . . . . . . . . . . . . 1 Escape Stasis 143 | . . . . . . 40 . 16 . 24 . 32 . . . . . . . . . . . 31 . . . . Rewire 95 | . . . . . . . . . . 1 . . . . . . . . . . 35 19 . 40 . . . . Trap . | . . . . . . . . . . . . . . . . . . . . . . . . . . . . . Miscellaneous 29 | . . . . . . . . . . . . . . . . . . . . . . . . . 1 . 27 1 Route ------- -11/Scrapyard -10/Materials (discovered 3 exits: *Mat x2 / *Min) -10/Mines (discovered 4 exits: *Mat x2 / *Exi / [Sub]) -10/Exiles -9/Mines -8/Materials -8/Garrison (discovered 3 exits: *Fac x3) -7/Factory -7/Garrison (discovered 4 exits: *Fac x4) -7/Factory -7/Garrison (discovered 3 exits: *Fac x3) -7/Factory (discovered 2 exits: *Fac / Gar) -7/Garrison (discovered 3 exits: *Fac x3) -6/Factory -6/Lower Caves -6/Lower Caves (discovered 2 exits: *Fac / *Dat) -6/Data Miner -5/Proximity Caves -5/Factory (discovered 2 exits: Fac / *Upp) -5/Upper Caves -5/Upper Caves (discovered 2 exits: *Fac / *War) -5/Warlord -4/Proximity Caves -4/Factory (discovered 2 exits: *Ext x2) -4/Extension (discovered 3 exits: *Res x2 / *Cet) -4/Cetus (discovered 2 exits: *Res / [*Arc]) -3/Research (discovered 4 exits: *Res x2 / *Tes x2) -2/Research (discovered 2 exits: *Acc / *Qua) -1/Access To Epsilon Eridani History --------- Turn | Location | Event 22 | -11/Scrapyard | Discovered new exit (range 16) 53 | -11/Scrapyard | Entered Materials 314 | -10/Materials | Build established: Mutant 406 | -10/Materials | Discovered new exit (range 9) 494 | -10/Materials | Discovered new exit (range 3) 597 | -10/Materials | Discovered new exit (range 12) 627 | -10/Materials | Entered Mines 643 | -10/Mines | Met a Derelict bent on vengeance 668 | -10/Mines | Discovered new exit (range 8) 678 | -10/Mines | Received a Rocket Launcher from a helpful Derelict 724 | -10/Mines | Assembled infested the area 738 | -10/Mines | A weapon hastily lodged in a ceiling crevice suddenly fell to the ground 890 | -10/Mines | Learned location of Storage (-8) 971 | -10/Mines | Discovered new exit (range 3) 988 | -10/Mines | Core integrity fell below 50% 1017 | -10/Mines | Lost 6 parts (1p2n1u2w) 1053 | -10/Mines | Found the Drone Emporium 1057 | -10/Mines | Found Prototype Device 1062 | -10/Mines | Identified Sensor Drone Bay 1374 | -10/Mines | Learned Materials garrison access intel 1476 | -10/Mines | Met a Derelict shopkeep closing up shop 1546 | -10/Mines | Identified exit to Materials 1726 | -10/Mines | Discovered new exit (range 9) 1977 | -10/Mines | Build established: Scavenger-Mutant 2144 | -10/Mines | Deemed a non-threat by the Exiles lab entrance 2144 | -10/Mines | Discovered new exit (range 5) 2148 | -10/Mines | Entered Exiles 2175 | -10/Exiles | Met 8R-AWN 2190 | -10/Exiles | Met EX-HEX 2219 | -10/Exiles | Met EX-BIN 2230 | -10/Exiles | Aligned with FarCom system 2231 | -10/Exiles | Given EX-Vault access code 2253 | -10/Exiles | Opened EX-Vault 2261 | -10/Exiles | Found Firepult 2280 | -10/Exiles | Warned to stay clear of 0b10 Research branches 2310 | -10/Exiles | Met EX-DEC 2316 | -10/Exiles | Learned location of Zion (-7) 2390 | -10/Exiles | Discovered new exit (range 10) 2400 | -10/Exiles | Left Exiles lab with Firepult 2400 | -10/Exiles | Entered Mines 2576 | -9/Mines | Discovered new exit (range 5) 2579 | -9/Mines | Received a Mining Laser from a helpful Derelict 2587 | -9/Mines | Entered Materials 2587 | -8/Materials | Accompanied by 1 ally 2587 | -8/Materials | Evolved 4 slots: Utility x3, Weapon x1 2588 | -8/Materials | Loaded intel: 1 garrison access location 2747 | -8/Materials | Garrison activated, responded to threat 2784 | -8/Materials | Lost 4 parts (1p2n1u) 2813 | -8/Materials | Destroyed 10 combat bots 2907 | -8/Materials | Identified exit to Garrison 2909 | -8/Materials | Entered Garrison 2937 | -8/Garrison | Rescued a captive Derelict 3019 | -8/Garrison | Triggered checkpoint 3061 | -8/Garrison | Garrison Relay disabled 3099 | -8/Garrison | Triggered checkpoint 3269 | -8/Garrison | Discovered new exit (range 10) 3305 | -8/Garrison | Triggered checkpoint 3327 | -8/Garrison | Garrison Relay disabled 3421 | -8/Garrison | Build established: Scavenger-Tank 3425 | -8/Garrison | Triggered checkpoint 3649 | -8/Garrison | Discovered new exit (range 15) 3689 | -8/Garrison | Triggered checkpoint 3705 | -8/Garrison | Garrison Relay disabled 3788 | -8/Garrison | Rescued AZ-K3N 3826 | -8/Garrison | Triggered checkpoint 3843 | -8/Garrison | Triggered checkpoint 3848 | -8/Garrison | AZ-K3N assimilated hostile G-47 Trooper 3919 | -8/Garrison | Triggered checkpoint 3978 | -8/Garrison | Discovered new exit (range 11) 4031 | -8/Garrison | Triggered checkpoint 4043 | -8/Garrison | Garrison Relay disabled 4391 | -8/Garrison | Entered Factory 4391 | -7/Factory | Evolved 2 slots: Utility x2 4682 | -7/Factory | Fabricated R-06 Scavenger? 4972 | -7/Factory | Repaired Flak Cannon 4982 | -7/Factory | Fabricated Y-54 Guardian? 5000 | -7/Factory | Repaired Wheel 5043 | -7/Factory | Garrison activated, responded to threat 5082 | -7/Factory | Identified exit to Garrison 5089 | -7/Factory | Entered Garrison 5089 | -7/Garrison | Warlord forces raided the area 5089 | -7/Garrison | Accompanied by 2 allies 5115 | -7/Garrison | Triggered checkpoint 5164 | -7/Garrison | Garrison Relay disabled 5172 | -7/Garrison | Triggered checkpoint 5185 | -7/Garrison | Triggered checkpoint 5297 | -7/Garrison | Triggered checkpoint 5302 | -7/Garrison | Discovered new exit (range 12) 5305 | -7/Garrison | Triggered checkpoint 5308 | -7/Garrison | Learned Factory security intel 5327 | -7/Garrison | Discovered new exit (range 5) 5395 | -7/Garrison | Lost 4 allies 5413 | -7/Garrison | Triggered checkpoint 5471 | -7/Garrison | Warlord forces retreated 5494 | -7/Garrison | Identified exit to Factory 5555 | -7/Garrison | Triggered checkpoint 5614 | -7/Garrison | Garrison Relay disabled 5765 | -7/Garrison | Phase Generator disabled 5868 | -7/Garrison | Garrison Relay disabled 5909 | -7/Garrison | Discovered exit to Factory (range 8) 6305 | -7/Garrison | Triggered checkpoint 6324 | -7/Garrison | Garrison Relay disabled 6338 | -7/Garrison | Garrison Relay disabled 6360 | -7/Garrison | Discovered exit to Factory (range 12) 6437 | -7/Garrison | Discovered exit to Factory (range 66) 6437 | -7/Garrison | Discovered exit to Factory (range 75) 6437 | -7/Garrison | Discovered exit to Factory (range 17) 6437 | -7/Garrison | Discovered exit to Factory (range 54) 6713 | -7/Garrison | Entered Factory 7113 | -7/Factory | First assault squad dispatched 7507 | -7/Factory | Identified exit to Garrison 7508 | -7/Factory | Entered Garrison 7578 | -7/Garrison | Destroyed 8 combat bots 7616 | -7/Garrison | Triggered checkpoint 7745 | -7/Garrison | Triggered checkpoint 7822 | -7/Garrison | Triggered checkpoint 7922 | -7/Garrison | Phase Generator disabled 7942 | -7/Garrison | Rescued a captive Derelict 8042 | -7/Garrison | Garrison Relay disabled 8172 | -7/Garrison | Discovered new exit (range 12) 8208 | -7/Garrison | Found embedded Infiltrators 8212 | -7/Garrison | Triggered checkpoint 8300 | -7/Garrison | Garrison Relay disabled 8391 | -7/Garrison | Triggered checkpoint 8477 | -7/Garrison | Discovered new exit (range 15) 8558 | -7/Garrison | Triggered checkpoint 8619 | -7/Garrison | Garrison Relay disabled 8656 | -7/Garrison | Triggered checkpoint 8820 | -7/Garrison | Discovered new exit (range 8) 8852 | -7/Garrison | Garrison Relay disabled 8888 | -7/Garrison | Triggered checkpoint 8949 | -7/Garrison | Attempted to access garrison exit controls, blocked by remote lockdown 9117 | -7/Garrison | Entered Factory 9292 | -7/Factory | Found Prototype Launcher 9292 | -7/Factory | Identified Rocket Array 9438 | -7/Factory | Discovered new exit (range 14) 9457 | -7/Factory | Identified exit to Factory 9959 | -7/Factory | Central database locked down 10005 | -7/Factory | Lost 4 parts (1p3u) 10157 | -7/Factory | Identified exit to Garrison 10158 | -7/Factory | Entered Garrison 10289 | -7/Garrison | Build established: Mutant 10367 | -7/Garrison | Triggered checkpoint 10411 | -7/Garrison | Garrison Relay disabled 10468 | -7/Garrison | Triggered checkpoint 10474 | -7/Garrison | Triggered checkpoint 10488 | -7/Garrison | Triggered checkpoint 10678 | -7/Garrison | Triggered checkpoint 10696 | -7/Garrison | Discovered exit to Factory (range 14) 10808 | -7/Garrison | Triggered checkpoint 10846 | -7/Garrison | Garrison Relay disabled 11236 | -7/Garrison | Core integrity fell below 50% 11242 | -7/Garrison | Discovered exit to Factory (range 10) 11253 | -7/Garrison | Rescued a captive Derelict 11262 | -7/Garrison | Triggered checkpoint 11269 | -7/Garrison | Garrison Relay disabled 11434 | -7/Garrison | Garrison Relay disabled 11472 | -7/Garrison | Discovered exit to Factory (range 15) 11483 | -7/Garrison | Garrison Relay disabled 11531 | -7/Garrison | Entered Factory 11531 | -6/Factory | Accompanied by 1 ally 11531 | -6/Factory | Evolved 2 slots: Power x1, Utility x1 11832 | -6/Factory | Build established: Scavenger-Mutant 11881 | -6/Factory | First assault squad dispatched 12060 | -6/Factory | Discovered new exit (range 4) 12072 | -6/Factory | Identified exit to Lower Caves 12321 | -6/Factory | High security lockdown imminent 12360 | -6/Factory | Build established: Mutant 12401 | -6/Factory | High security lockdown engaged 12559 | -6/Factory | Destroyed 12 combat bots 12604 | -6/Factory | Destroyed 8 combat bots 12754 | -6/Factory | Destroyed 11 combat bots 12842 | -6/Factory | Destroyed 7 combat bots 12887 | -6/Factory | Entered Lower Caves 12899 | -6/Lower Caves | Destroyed 18 combat bots 12923 | -6/Lower Caves | Met a Warlord Commander 12924 | -6/Lower Caves | Learned location of Warlord (-5) 12925 | -6/Lower Caves | Warlord Commander delivered Encrypted Comm Array 12925 | -6/Lower Caves | Found Encrypted Comm Array 12940 | -6/Lower Caves | Lost 3 parts (1n2u) 13078 | -6/Lower Caves | Spotted B-75 Beast 13112 | -6/Lower Caves | Destroyed B-75 Beast 13430 | -6/Lower Caves | Build established: Scavenger-Gunner 13573 | -6/Lower Caves | Learned Factory terminal intel 13595 | -6/Lower Caves | Discovered new exit (range 3) 13605 | -6/Lower Caves | Identified exit to Lower Caves 13789 | -6/Lower Caves | Entered another Lower Caves area 13789 | -6/Lower Caves | Accompanied by 1 ally 13851 | -6/Lower Caves | Identified exit to Factory 14306 | -6/Lower Caves | Discovered new exit (range 13) 14374 | -6/Lower Caves | Identified exit to Data Miner 14398 | -6/Lower Caves | Encountered a Warlord checkpoint 14564 | -6/Lower Caves | Learned Factory stockpile data 14947 | -6/Lower Caves | Found Alien Artifact 15157 | -6/Lower Caves | Entered Data Miner 15157 | -6/Data Miner | Accompanied by 1 ally 15157 | -6/Data Miner | Discovered new exit (range 7) 15173 | -6/Data Miner | Identified exit to Proximity Caves 15184 | -6/Data Miner | Met Data Miner 15226 | -6/Data Miner | Learned location of Section 7 (-2) 15226 | -6/Data Miner | Acquired the access code to Warlord's prototype stash 15248 | -6/Data Miner | Received God Mode back door access code from Data Miner 15282 | -6/Data Miner | Entered Proximity Caves 15282 | -5/Proximity Caves | Accompanied by 1 ally 15808 | -5/Proximity Caves | Discovered exit to Factory (range 13) 15887 | -5/Proximity Caves | Learned 8 Factory zone layouts 16169 | -5/Proximity Caves | Entered Factory 16169 | -5/Factory | Evolved 2 slots: Utility x1, Weapon x1 16170 | -5/Factory | Identified exit to Upper Caves 16170 | -5/Factory | Identified exit to Factory 16172 | -5/Factory | Loaded intel: 26 terminal locations 16425 | -5/Factory | Joined by Warlord Muscle squad 16465 | -5/Factory | Build established: Scavenger-Tank 16574 | -5/Factory | Incoming investigation squad redirected 17039 | -5/Factory | Lost 4 parts (1p1n2u) 17156 | -5/Factory | Identified Core Expander 17156 | -5/Factory | Installed Core Expander, added new Propulsion slot 17182 | -5/Factory | Incoming investigation squad redirected 17630 | -5/Factory | Joined by Warlord Pyro squad 17828 | -5/Factory | Fabricated H-66 Slayer? 18218 | -5/Factory | Joined by Warlord Geek squad 18362 | -5/Factory | Found Imp. Powered Armor 18364 | -5/Factory | Found Imp. Powered Armor 18505 | -5/Factory | Entered Upper Caves 18612 | -5/Upper Caves | Learned Armory trap positions 18612 | -5/Upper Caves | Learned Factory emergency access door positions 18612 | -5/Upper Caves | Learned Research garrison access intel 18785 | -5/Upper Caves | Discovered new exit (range 11) 18926 | -5/Upper Caves | Identified exit to Upper Caves 18933 | -5/Upper Caves | Destroyed 8 combat bots 19742 | -5/Upper Caves | Entered another Upper Caves area 19742 | -5/Upper Caves | Accompanied by 1 ally 19774 | -5/Upper Caves | Discovered exit to Factory (range 6) 19927 | -5/Upper Caves | Learned Factory emergency access door positions 19999 | -5/Upper Caves | Spotted B-75 Beast 20020 | -5/Upper Caves | Destroyed B-75 Beast 20331 | -5/Upper Caves | Build established: Scavenger-Mutant 20850 | -5/Upper Caves | Build established: Scavenger-Gunner 21596 | -5/Upper Caves | Attracted the attention of an 0b10 checkpoint 21974 | -5/Upper Caves | Discovered new exit (range 13) 22008 | -5/Upper Caves | Identified exit to Warlord 22017 | -5/Upper Caves | Entered Warlord 22072 | -5/Warlord | System corruption cleaned by Quarantine Array 22214 | -5/Warlord | Visited the Vortex Lab 22223 | -5/Warlord | Warlord's base attacked by MAIN.C 22227 | -5/Warlord | Found Prototype Energy Gun 22227 | -5/Warlord | Identified Vortex Shotgun 22230 | -5/Warlord | Found Vortex Shotgun 22239 | -5/Warlord | Found Vortex Shotgun 22244 | -5/Warlord | Found Vortex Shotgun 22326 | -5/Warlord | Build established: Scavenger-Mutant 22459 | -5/Warlord | Met Warlord 22475 | -5/Warlord | Opened Warlord's prototype stash 22481 | -5/Warlord | Found Prototype Reactor 22488 | -5/Warlord | Found Prototype Device 22488 | -5/Warlord | Identified Exp. Cloaking Device 22513 | -5/Warlord | Found Prototype Device 22513 | -5/Warlord | Identified System Purifier 22517 | -5/Warlord | Found Prototype Processor 22517 | -5/Warlord | Identified Spectral Analyzer 22523 | -5/Warlord | Found Prototype Hackware 22573 | -5/Warlord | Warlord forces counterattacked 22776 | -5/Warlord | Spotted Striker 22781 | -5/Warlord | Destroyed Striker 22808 | -5/Warlord | Lost 7 allies 22830 | -5/Warlord | Discovered new exit (range 14) 22857 | -5/Warlord | Spotted Executioner 22858 | -5/Warlord | Spotted Executioner 22875 | -5/Warlord | Entered Proximity Caves 22880 | -4/Proximity Caves | Attracted the attention of an 0b10 outpost 22883 | -4/Proximity Caves | Destroyed 10 combat bots 22889 | -4/Proximity Caves | Lost 9 allies 23031 | -4/Proximity Caves | Learned Research emergency access door positions 23090 | -4/Proximity Caves | Build established: Scavenger-Tank 23291 | -4/Proximity Caves | Learned location of Armory (-3) 23674 | -4/Proximity Caves | Discovered exit to Factory (range 9) 23680 | -4/Proximity Caves | Learned location of Quarantine (-2) 23734 | -4/Proximity Caves | Entered Factory 23734 | -4/Factory | Accompanied by 2 allies 23734 | -4/Factory | Evolved 2 slots: Utility x1, Weapon x1 23735 | -4/Factory | Identified exit to Extension 24071 | -4/Factory | Discovered exit to Extension (range 16) 24151 | -4/Factory | Found Prototype Device 24152 | -4/Factory | Identified Adv. EM Disruption Field 24384 | -4/Factory | Entered Extension 24555 | -4/Extension | Rescued A7 24582 | -4/Extension | Lost 3 allies 24616 | -4/Extension | Rescued a captive Derelict 24617 | -4/Extension | Rescued a captive Derelict 24675 | -4/Extension | Energy Cycler disabled 24675 | -4/Extension | Rescued a captive Derelict 24675 | -4/Extension | Rescued a captive Derelict 24675 | -4/Extension | Rescued a captive Derelict 24677 | -4/Extension | Rescued a captive Derelict 24677 | -4/Extension | Rescued a captive Derelict 24684 | -4/Extension | Rescued a captive Derelict 24687 | -4/Extension | Rescued a captive Derelict 24689 | -4/Extension | Rescued a captive Derelict 24691 | -4/Extension | Rescued a captive Derelict 24884 | -4/Extension | First assault squad dispatched 24905 | -4/Extension | Incoming assault squad redirected 24923 | -4/Extension | Disrupted transfer network 25028 | -4/Extension | Spotted B-86 Titan 25030 | -4/Extension | Destroyed B-86 Titan 25047 | -4/Extension | Spotted B-86 Titan 25048 | -4/Extension | Discovered new exit (range 15) 25051 | -4/Extension | Destroyed B-86 Titan 25072 | -4/Extension | Destroyed 10 combat bots 25153 | -4/Extension | Incoming assault squad redirected 25158 | -4/Extension | Incoming assault squad redirected 25393 | -4/Extension | Lost 3 allies 25423 | -4/Extension | Discovered new exit (range 10) 25424 | -4/Extension | Discovered new exit (range 6) 25473 | -4/Extension | Entered Cetus 25473 | -4/Cetus | Accompanied by 8 allies (A7) 25478 | -4/Cetus | Acquired a Cetus Manufacturing Module code from A7 25483 | -4/Cetus | Spotted Cetus Guard 25486 | -4/Cetus | Destroyed Cetus Guard 25486 | -4/Cetus | Spotted Cetus Guard 25489 | -4/Cetus | Spotted Cetus Guard 25490 | -4/Cetus | Destroyed Cetus Guard 25491 | -4/Cetus | Destroyed Cetus Guard 25492 | -4/Cetus | Spotted Cetus Guard 25493 | -4/Cetus | Destroyed Cetus Guard 25549 | -4/Cetus | Identified Vortex Chain Reactor 25601 | -4/Cetus | Started Cetus Manufacturing Module 25613 | -4/Cetus | Escorted A7 to Cetus Mainframe 25626 | -4/Cetus | Manufactured an Enhanced Grunt 25651 | -4/Cetus | Manufactured an Enhanced Grunt 25676 | -4/Cetus | Manufactured an Enhanced Grunt 25701 | -4/Cetus | Manufactured an Enhanced Grunt 25726 | -4/Cetus | Manufactured an Enhanced Grunt 25754 | -4/Cetus | Discovered new exit (range 16) 25777 | -4/Cetus | Spotted Cetus Guard 25777 | -4/Cetus | Spotted Cetus Guard 25778 | -4/Cetus | Spotted Cetus Guard 25778 | -4/Cetus | Spotted Cetus Guard 25779 | -4/Cetus | Destroyed Cetus Guard 25779 | -4/Cetus | Destroyed Cetus Guard 25780 | -4/Cetus | Destroyed Cetus Guard 25781 | -4/Cetus | Destroyed Cetus Guard 25796 | -4/Cetus | Discovered new exit (range 15) 25803 | -4/Cetus | Met Revision 17 25844 | -4/Cetus | Entered Research 25844 | -3/Research | Accompanied by 11 allies (A7) 25844 | -3/Research | Evolved 2 slots: Propulsion x1, Utility x1 25846 | -3/Research | Loaded intel: 4 garrison access locations 25849 | -3/Research | Received a hacking code to weaken MAIN.C 25920 | -3/Research | Found Prototype Device 25920 | -3/Research | Identified Exp. Thermal Shield 26044 | -3/Research | Revision forces began assault on 0b10 26051 | -3/Research | Build established: Commander-Tank 26209 | -3/Research | Discovered new exit (range 6) 26225 | -3/Research | Met up with Revision 17++ 26249 | -3/Research | Identified exit to Testing 26525 | -3/Research | Lost 5 allies 26544 | -3/Research | Research terminal network offline 26733 | -3/Research | Lost 7 allies 26779 | -3/Research | Spotted Striker 26781 | -3/Research | Discovered exit to Testing (range 30) 26823 | -3/Research | Discovered new exit (range 58) 26838 | -3/Research | Discovered new exit (range 81) 26855 | -3/Research | Identified exit to Research 27010 | -3/Research | Entered another Research area 27010 | -2/Research | Accompanied by 3 allies 27010 | -2/Research | Warlord forces began assault on 0b10 27010 | -2/Research | Evolved 2 slots: Utility x1, Weapon x1 27035 | -2/Research | Distinguished unit "Bridgeowners Association" dispatched to help 27035 | -2/Research | Distinguished unit "Golden Rifle" dispatched to help 27120 | -2/Research | Research machine network offline 27223 | -2/Research | Met up with Warlord 27273 | -2/Research | Met DD-05H 27276 | -2/Research | Discovered new exit (range 8) 27289 | -2/Research | Identified exit to Quarantine 27359 | -2/Research | Discovered new exit (range 55) 27360 | -2/Research | Identified exit to Access 27410 | -2/Research | Build established: Executioner 27521 | -2/Research | Entered Access 27521 | -1/Access | Evolved 2 slots: Power x1, Utility x1 27551 | -1/Access | Identified System Mapper 27710 | -1/Access | Found Prototype Launcher 27711 | -1/Access | Identified Adv. Micro-nuke Launcher 27832 | -1/Access | Energy Cycler disabled 27847 | -1/Access | Build established: Hacker-Executioner 27943 | -1/Access | Destroyed 7 combat bots 28052 | -1/Access | First assault squad dispatched 28075 | -1/Access | Incoming assault squad redirected 28226 | -1/Access | Spotted B-99 Colossus 28230 | -1/Access | Destroyed B-99 Colossus 28234 | -1/Access | Spotted B-99 Colossus 28243 | -1/Access | Destroyed B-99 Colossus 28283 | -1/Access | Discovered new exit (range 6) 28298 | -1/Access | Incoming assault squad redirected 28299 | -1/Access | Identified exit to Surface 28514 | -1/Access | Build established: Pyromaniac-Executioner 28573 | -1/Access | Incoming assault squad redirected 28696 | -1/Access | Destroyed 12 combat bots 28753 | -1/Access | High security lockdown imminent 28833 | -1/Access | High security lockdown engaged 28912 | -1/Access | Destroyed 12 combat bots 28954 | -1/Access | Destroyed Executioner 28954 | -1/Access | Spotted Executioner 28956 | -1/Access | Destroyed Executioner 28996 | -1/Access | Lost 4 parts (2u2w) 29006 | -1/Access | Destroyed 8 combat bots 29013 | -1/Access | Spotted Investigator 29013 | -1/Access | Scanned by Researcher 29014 | -1/Access | Destroyed Investigator 29025 | -1/Access | Found Prototype Launcher 29026 | -1/Access | Identified Containment Facilitator 29183 | *** | Escaped! Last Messages --------------- B-74 Champion unfolds itself. M-36 Artificer repairs Wheel. C-30 ARC bursts open, deploying its payload. G-73 Enforcer unfolds itself. L-61 Swordsman unfolds itself. G-73 Enforcer unfolds itself. L-61 Swordsman unfolds itself. E-15 Imp unfolds itself. Terminal disabled. E-15 Imp destroyed. Hvy. Armor Plating destroyed. Enh. Armored Heavy Treads destroyed. Vortex Shotgun destroyed. Destroyed Hvy. Laser. K-01 Serf collects debris. G-73 Enforcer destroyed. [Achievement: 50k Club] [Achievement: Rambo] [Achievement: Epsilon Run] [Achievement: Victory By Combat] Map ----- +----------------------------------------------------+ | =%= ## # #############???????????? | | ###################+#"" ##### #??????????????? | | %==%! %! %! #??????????????? | | !%% =%% #??????????????? | | ########" #+################# #??????????????? | | ## # ] * #???????????? ##??????????????? | | [ ## # ! #?????????????????????????????? | | "" ## # ############??????????????????? | | "" * ## # ! ## """ #??????????????????? | | """" ## # #" T"" #??#???????????????? | | """" + # ## "" "" #? #???????????????? | | "" ##/########### # #####???????????? | | "" # ## ] / ????????????? | | # ## # ??????????????? | | [ # =## #????????w?????????? | | # %%[#[!%[ #????????C?????????? | | ######## % [############???????? #????????? | | ???????# % ###????????????????? #????????? | | ???????#############?????????????????? #????????? | | ???????????##%#??????????????###?????? #????????? | | #????????#########??########## ####### #????????? | | #????????# ""?" o #????????? | | #????????# %k%g""" #????????? | | #?########% kYg%" #????????? | | #?# b g "%"g #????????? | | #?# """" "@ #????????? | | #?# i b "??" "" ll #????????? | | #?# % "??" ????????? | | #?# ### = "??" g % = #????????? | | #?# #?# "??" % #????????? | | ###% #?# "??" #????????? | | % #?#########??########## #????????? | | #?????????????????????# #????????? | | #??????????????????????? ???????????? | | % #????????????????????????## ???????????? | | ########???????###########?????????##????????????? | | #???????????# #???????????????????????? | | #???????????# = #?????####??????????????? | | #???????????# =#????? ???????????????? | | ! #???????????# #????# ???????????????? | | %%%#???????????# #????# #???????????????? | | *##??????????# #????# #???????????????? | | %!%"###????????# #????# #???????????????? | | !!["% #???????## #????# #???????????????? | | ##### #???????#"""""""######### ##########??????? | | ?####%#########"" = "" ???? | | ?# %% "%* "%%" ???? | | ?# %%%= "% """#########/########?????????? | | ?# [ [ #/ " ##?#] #??????????? | | ?# # "##??# #??????????? | +----------------------------------------------------+ Best States ------------- Heat Dissipation 144 Coolant Potential 100 Energy Generation 75 Energy Capacity 950 Matter Stores 300 Matter Capacity 300 Sight Range 16 Terrain Scan Density 10 Jamming Range 14 Cloak Strength 4 Additional Mass Support 12 Base Temperature (-) 200 Corruption Containment 12 Armor Coverage 800 Resistance: KI 25 Resistance: TH 30 Resistance: EM 50 Weapon Shielding 66 Weapon Cycling 20 Melee Speed Boost 20 Phase Shifting 15 Evasion (%) 55 Core Analysis 6 Recoil Reduction 4 Energy Filtering 30 Particle Charging 25 Offensive Hacking 32 Item Schematics ----------------- Variable Charge Gun | -7/Factory | Hacked Smartbomb Launcher | -7/Factory | Scanalyzed System Shield | -7/Factory | Extracted Seismic Detector | -7/Factory | Extracted Terrain Scan Processor | -7/Factory | Extracted Hammer | -7/Factory | Extracted Med. Treads | -7/Factory | Extracted Energy Filter | -7/Factory | Extracted Deuterium Engine | -7/Factory | Extracted Imp. Utility Shielding | -7/Factory | Extracted Xenon Bombardment Thruster | -7/Factory | Extracted Hvy. Laser | -7/Factory | Extracted Imp. Hacking Suite | -7/Factory | Hacked Adv. ECM Suite | -7/Factory | Hacked Adv. Phase Shifter | -7/Factory | Scanalyzed Arc Projector | -6/Factory | Extracted Imp. System Shield | -6/Factory | Extracted System Guard | -6/Factory | Extracted Hardlight Generator | -6/Factory | Extracted Imp. Terrain Scan Processor | -6/Factory | Extracted Weapon Shielding | -6/Factory | Extracted Gauss Cannon | -6/Factory | Extracted Lyr. Medium Armor Plating | -6/Factory | Extracted Combat Drone Bay | -6/Data Miner | Free Lgt. Regenerative Plating | -6/Data Miner | Free Enh. Flexi-carbon Leg | -6/Data Miner | Free Imp. Thermal Defense Suite | -6/Data Miner | Free Plasma Sword | -6/Data Miner | Free Centrium Wheel | -6/Data Miner | Free Imp. Cloaking Device | -6/Data Miner | Free Hardcell Cannon | -6/Data Miner | Free Adv. Shield Generator | -6/Data Miner | Free Adv. Reaction Control System | -6/Data Miner | Free Adv. Datajack | -6/Data Miner | Free Fusion Bomb Launcher | -6/Data Miner | Free Q-thruster | -6/Data Miner | Free Imp. Coolant Injector | -5/Factory | Scanalyzed Antimatter Cannon | -5/Factory | Scanalyzed Robot Schematics ------------------ A-15 Conveyor | -6/Data Miner | Free B-48 Gladiator | -6/Data Miner | Free S-27 Virus | -6/Data Miner | Free M-30 Cleanser | -6/Data Miner | Free H-66 Slayer | -6/Data Miner | Free G-50 Soldier | -6/Data Miner | Free Fabricated ------------ R-06 Scavenger | x2 | -7/Factory | Preloaded Y-54 Guardian | x2 | -7/Factory | Preloaded H-66 Slayer | x2 | -5/Factory Alien Tech Used ----------------- Core Expander Achievements -------------- 50k Club Epsilon Run Equal Opportunity Bot Rambo Victory By Combat Challenges ------------ None Game ------ Seed LauncherNeutronChronowheel Manual? 0 Play Time 06:35:29 Cumulative 207.4 hours Start 2024.09.12 @ 04:57:50 End 2024.09.16 @ 05:57:07 Sessions 13 Manual Loads 0 Difficulty Rogue Special Mode None Game No. 172 Rogue 163 Adventurer 9 Explorer 0 Win Type 0 Total 1 Types 1/0/0/0/0/0/0/0/0 Lore% 70 Gallery% 70 Achievement% 57 Wizard Run 0 Options --------- Layout 1 ASCII 0 Keyboard 0 Movement Numpad Keybinds 0 Fullscreen 1 Font 24/Smallcaps Map View 50x35 Zoom Use 0% Tactical HUD 0 Map Filters NONE Filters NONE Steam 1 RUN: ccbf4aa3-ca99-44b9-a8b9-0cea293c16b0